bitfinex/quotes_ETHUSD_20220123
["timestamp","ask_amount","ask_price","bid_price","bid_amount"]
[1642954604249,1.36141123,2446.4,2445.6,0.59]
[1642954604493,1.36141123,2446.4,2445.7,0.3]
[1642954605290,1.36141123,2446.4,2445.9,1.48489467]
[1642954605494,1.36141123,2446.4,2445.3,3.98797]
[1642954605692,1.36141123,2446.4,2445.1,3.6384]
[1642954605693,2.96141123,2446.4,2445.1,3.6384]
[1642954605894,0.04362536,2446.3,2445.1,3.6384]
[1642954606095,1.04362536,2446.3,2445.1,3.6384]
[1642954606291,1.23125529,2445.5,2445.1,3.6384]
[1642954606495,1.23125529,2445.5,2445.4,1.4341708]
[1642954606697,0.79547559,2445.7,2445.4,1.4341708]
[1642954606898,12.805,2446.3,2445.4,1.4341708]
[1642954607096,4.9119,2446.3,2445.4,1.4341708]
[1642954607297,0.2662,2446.5,2445.5,3.61155611]
[1642954607699,1.1456118,2446.3,2445.5,3.61155611]
[1642954607895,1.1456118,2446.3,2446.1,1.34157299]
[1642954608338,1.1456118,2446.3,2445.7,0.47097]
[1642954609443,1.1456118,2446.3,2445.9,1.26171113]
[1642954609840,1.1456118,2446.3,2445.7,0.3]
[1642954610046,1.1456118,2446.3,2445.6,0.3]
[1642954610252,1.1456118,2446.3,2445.4,3.6591]
[1642954610844,1.1456118,2446.3,2445.8,1.13568892]
[1642954611045,1.1456118,2446.3,2445.2,3.77847]
[1642954611246,1.15399095,2445.9,2445.2,3.77847]
[1642954611547,1.43820593,2446.4,2445.3,1.0]
[1642954611746,1.43820593,2446.4,2445.3,1.3]
[1642954611997,1.43820593,2446.4,2445.3,0.3]
[1642954612199,1.43820593,2446.4,2445.2,1.77097]
[1642954612397,1.43820593,2446.4,2445.9,1.137441]
[1642954612597,1.43820593,2446.4,2445.2,1.77097]
[1642954612598,1.37959959,2446.0,2445.2,1.77097]
[1642954613303,1.37959959,2446.0,2445.2,0.77097]
[1642954613500,1.37959959,2446.0,2445.0,0.17097]
[1642954613705,0.67955687,2445.6,2445.2,1.29955292]
[1642954613899,1.37959959,2446.0,2445.2,1.29955292]
[1642954614697,1.37959959,2446.0,2445.2,1.59955292]
[1642954614898,1.37959959,2446.0,2445.2,1.89955292]
[1642954615299,1.54574896,2445.9,2445.6,1.10543397]
[1642954615503,1.54574896,2445.9,2445.1,1.0]
[1642954616544,1.54574896,2445.9,2444.7,4.81856267]
[1642954616545,0.57201384,2445.2,2444.7,4.81856267]
[1642954616746,1.38108134,2445.0,2444.4,7.01448194]
[1642954616948,0.02239096,2445.7,2444.4,0.17097]
[1642954617145,0.02045651,2445.7,2444.4,0.17097]
[1642954617346,5.54455181,2445.8,2444.4,0.17097]
[1642954617945,1.40906602,2444.9,2444.8,1.34521001]
[1642954618151,5.54455181,2445.8,2444.8,1.34521001]
[1642954618948,5.54455181,2445.8,2444.4,0.3]
[1642954618949,5.56848181,2445.8,2444.4,0.3]
[1642954619146,1.08685181,2445.7,2444.3,5.3746]
[1642954619411,0.3,2445.6,2444.3,5.3746]
[1642954619600,0.38685181,2445.6,2444.3,1.6]
[1642954620005,1.35892041,2444.8,2444.2,2.52465886]
[1642954620206,1.35892041,2444.8,2444.0,7.43]
[1642954621004,1.35892041,2444.8,2444.4,1.43317918]
[1642954621506,3.0784,2445.3,2444.1,0.3]
[1642954621507,1.26049858,2444.4,2444.1,0.3]
[1642954621706,1.26049858,2444.4,2444.1,1.3]
[1642954623140,1.26049858,2444.4,2444.2,1.4377893]
[1642954624347,1.26049858,2444.4,2444.0,7.43]
[1642954624546,1.26049858,2444.4,2443.6,0.1635]
[1642954624746,0.03019787,2444.3,2443.6,0.1635]
[1642954624948,1.26049858,2444.4,2443.5,7.43]
[1642954625646,0.87960061,2443.9,2443.6,1.21037786]
[1642954625852,1.09504148,2443.7,2443.6,2.21037786]
[1642954626049,1.09504148,2443.7,2443.5,7.43]
[1642954626649,1.09504148,2443.7,2443.0,3.14451194]
[1642954626901,1.09504148,2443.7,2443.4,1.36420088]
[1642954628598,3.7592,2444.3,2443.6,0.17097]
[1642954628804,0.9012,2444.5,2443.5,3.4426377]
[1642954628999,0.9012,2444.5,2443.7,0.2046]
[1642954629198,0.9012,2444.5,2443.7,4.41269686]
[1642954629401,0.9012,2444.5,2444.4,1.47387199]
[1642954629799,0.9012,2444.5,2444.4,6.04188468]
[1642954630001,0.9012,2444.5,2444.4,2.27847199]
[1642954630199,0.9012,2444.5,2444.4,3.27847199]
[1642954630400,0.9012,2444.5,2444.4,6.57847199]
[1642954630644,0.9012,2444.5,2444.4,7.57847199]
[1642954630840,3.8524,2445.8,2444.4,11.24340065]
[1642954631054,15.10219627,2445.9,2444.4,11.24340065]
[1642954631055,15.09952662,2445.9,2444.5,5.18288877]
[1642954631248,15.09952662,2445.9,2444.6,0.3681]
[1642954631445,15.09952662,2445.9,2444.7,3.58604039]
[1642954631649,2.40759165,2445.8,2444.8,1.0]
[1642954631846,1.19566111,2445.5,2445.2,1.17484375]
[1642954632245,1.19566111,2445.5,2445.2,1.47484375]
[1642954632450,2.32073984,2445.8,2445.2,1.47484375]
[1642954632753,0.00266965,2446.6,2445.3,3.46455152]
[1642954632754,2.32073984,2446.1,2445.3,3.46455152]
[1642954633150,2.32073984,2446.1,2445.4,1.0]
[1642954633348,2.32073984,2446.1,2445.5,3.56101557]
[1642954633553,2.32073984,2446.1,2446.0,1.50259907]
[1642954633949,2.32073984,2446.1,2445.6,1.0]
[1642954634149,2.32073984,2446.1,2445.7,0.3]
[1642954634610,2.32073984,2446.1,2445.6,0.5046]
[1642954634812,2.32073984,2446.1,2445.6,1.5046]
[1642954635613,2.32073984,2446.1,2445.8,1.47502827]
[1642954635814,2.32073984,2446.1,2445.5,0.3]
[1642954636014,2.32073984,2446.1,2445.4,0.7059]
[1642954636614,1.21474582,2445.6,2445.4,0.4059]
[1642954636823,1.79012181,2445.6,2445.4,0.4059]
[1642954637418,2.17697362,2445.6,2444.2,4.3472]
[1642954637619,2.17697362,2445.6,2444.1,7.43]
[1642954637620,3.69601618,2445.5,2444.1,7.43]
[1642954637820,4.28601618,2445.5,2444.2,0.2046]
[1642954638019,3.05146652,2444.9,2444.6,1.11641527]
[1642954638247,1.50907971,2444.9,2444.6,1.11641527]
[1642954640056,1.50907971,2444.9,2444.1,1.2046]
[1642954640253,1.50907971,2444.9,2444.1,1.8046]
[1642954640457,1.50907971,2444.9,2444.1,0.8046]
[1642954640854,1.18043592,2445.0,2444.1,0.5046]
[1642954641052,1.18043592,2445.0,2444.1,0.2046]
[1642954641458,1.18043592,2445.0,2444.1,1.5046]
[1642954641890,1.33913659,2444.9,2444.5,1.4904235]
[1642954642095,1.33913659,2444.9,2444.5,2.0904235]
[1642954643098,1.33913659,2444.9,2444.5,2.2950235]
[1642954643496,1.33913659,2444.9,2444.5,2.2450235]
[1642954643698,3.6651,2445.6,2444.5,2.2450235]
[1642954643898,1.2181,2445.7,2444.5,2.2450235]
[1642954644298,2.32070406,2445.6,2444.5,2.2450235]
[1642954644798,2.75662981,2445.2,2444.5,2.2450235]
[1642954644998,1.08963974,2444.8,2444.5,3.2450235]
[1642954645201,2.32070406,2445.6,2444.5,2.2450235]
[1642954645398,2.32070406,2445.6,2444.6,1.0]
[1642954645647,2.32070406,2445.6,2444.5,2.0404235]
[1642954645846,2.32070406,2445.6,2444.5,2.2450235]
[1642954646048,1.41718662,2445.5,2445.2,1.21614701]
[1642954646249,1.31028858,2445.3,2444.5,0.76699226]
[1642954646655,1.31028858,2445.3,2444.5,0.51699226]
[1642954646853,1.41718662,2445.5,2444.5,3.94162094]
[1642954647055,1.41718662,2445.5,2444.6,1.0]
[1642954647253,1.41718662,2445.5,2444.7,3.67470093]
[1642954647454,1.41718662,2445.5,2444.7,0.2046]
[1642954647657,1.41718662,2445.5,2444.7,0.5046]
[1642954647853,1.41718662,2445.5,2444.7,0.2046]
[1642954648255,1.20194872,2445.1,2444.7,0.2046]
[1642954648456,1.20194872,2445.1,2444.9,1.4332914]
[1642954649394,1.20194872,2445.1,2444.7,0.2046]
[1642954649799,1.20194872,2445.1,2444.5,0.5046]
[1642954650600,1.9025249,2445.1,2444.8,1.23648749]
[1642954651000,1.9025249,2445.1,2444.5,0.2046]
[1642954652005,1.9025249,2445.1,2444.7,1.44874444]
[1642954652401,1.2405,2445.8,2444.7,2.04874444]
[1642954653003,2.32077169,2445.7,2444.7,2.04874444]
[1642954653447,1.4042727,2445.5,2445.1,1.31082814]
[1642954653652,1.42671448,2445.4,2444.5,5.06029526]
[1642954653851,1.42671448,2445.4,2444.5,5.36029526]
[1642954654050,1.42671448,2445.4,2444.5,5.66029526]
[1642954654251,1.42671448,2445.4,2444.5,5.100027]
[1642954654457,1.42671448,2445.4,2444.5,1.8046]
[1642954654652,1.42671448,2445.4,2445.0,1.37574759]
[1642954654855,1.42671448,2445.4,2444.5,1.8046]
[1642954656454,1.42671448,2445.4,2444.5,1.6]
[1642954656654,1.42671448,2445.4,2444.5,1.8046]
[1642954657699,1.42671448,2445.4,2444.8,1.20508644]
[1642954658900,2.72454675,2445.4,2444.8,1.20508644]
[1642954659402,2.72454675,2445.4,2444.8,1.50508644]
[1642954659607,1.2405,2445.8,2444.8,1.50508644]
[1642954659802,1.2405,2445.8,2444.9,0.3]
[1642954660002,1.2405,2445.8,2444.8,1.50508644]
[1642954660202,1.2405,2445.8,2444.8,1.20508644]
[1642954660669,1.37027403,2445.2,2444.2,8.69730167]
[1642954660862,1.37027403,2445.2,2444.2,5.334]
[1642954661867,1.37027403,2445.2,2444.2,5.634]
[1642954662064,1.37027403,2445.2,2444.3,1.0]
[1642954662269,1.47187213,2444.9,2444.4,0.2046]
[1642954662466,1.47187213,2444.9,2444.1,3.9477]
[1642954662667,1.47187213,2444.9,2444.1,0.1]
[1642954662867,1.47187213,2444.9,2444.2,1.0]
[1642954663069,1.47187213,2444.9,2444.1,0.1]
[1642954663265,0.74748877,2444.4,2444.1,1.58115043]
[1642954663469,1.30404128,2444.5,2444.1,1.58115043]
[1642954663666,1.1453,2445.0,2444.1,1.58115043]
[1642954664496,2.47199601,2445.0,2444.6,1.38139817]
[1642954664696,1.1453,2445.0,2444.6,1.38139817]
[1642954664903,1.1453,2445.0,2444.6,1.68139817]
[1642954665101,1.1453,2445.0,2444.6,1.98139817]
[1642954665299,1.1453,2445.0,2444.7,3.48704958]
[1642954665496,1.1453,2445.0,2444.7,0.3]
[1642954665799,1.14374568,2445.0,2444.9,5.3046]
[1642954666001,0.00266965,2446.0,2445.0,8.15]
[1642954666203,0.04,2446.2,2445.2,24.05]
[1642954666398,0.04,2446.2,2445.3,3.55259856]
[1642954666598,0.04,2446.2,2445.4,1.0]
[1642954666998,2.32007703,2446.1,2445.9,1.3806128]
[1642954668000,2.32007703,2446.1,2445.3,0.8046]
[1642954668855,2.32007703,2446.1,2445.3,4.18631227]
[1642954669056,2.32007703,2446.1,2445.4,1.0]
[1642954669560,2.32007703,2446.1,2445.3,0.8046]
[1642954670157,2.32007703,2446.1,2445.4,3.39265496]
[1642954670358,2.32007703,2446.1,2445.3,0.8046]
[1642954670856,2.32007703,2446.1,2445.4,3.39063595]
[1642954671057,2.32007703,2446.1,2445.5,1.0]
[1642954671457,2.32007703,2446.1,2445.5,1.6]
[1642954671658,2.32007703,2446.1,2445.5,0.6]
[1642954671896,2.32007703,2446.1,2445.3,4.38905711]
[1642954672102,2.32007703,2446.1,2445.4,1.0]
[1642954672302,2.32007703,2446.1,2445.3,3.58445711]
[1642954672506,2.32007703,2446.1,2445.3,3.65204336]
[1642954672705,2.32007703,2446.1,2446.0,1.18827127]
[1642954673303,2.32007703,2446.1,2445.3,0.2046]
[1642954673705,2.32007703,2446.1,2445.1,5.94061846]
[1642954674305,2.32007703,2446.1,2445.1,29.99061846]
[1642954674505,2.32007703,2446.1,2445.9,1.247814]
[1642954674707,2.32007703,2446.1,2445.2,3.35972775]
[1642954674908,2.32007703,2446.1,2445.3,0.2046]
[1642954675306,2.32007703,2446.1,2445.2,3.43787006]
[1642954675508,2.32007703,2446.1,2445.3,1.5046]
[1642954675952,3.8812772,2446.1,2445.7,1.49691622]
[1642954676552,2.32007703,2446.1,2445.7,1.79691622]
[1642954676755,2.32007703,2446.1,2445.8,3.44442176]
[1642954676960,2.32007703,2446.1,2446.0,6.7546]
[1642954677159,2.32007703,2446.1,2446.0,7.5034]
[1642954677356,2.32007703,2446.1,2446.0,9.1034]
[1642954679162,2.32007703,2446.1,2446.0,2.5534]
[1642954679398,2.32007703,2446.1,2446.0,1.8046]
[1642954679600,2.32007703,2446.1,2446.0,0.8046]
[1642954679798,2.32007703,2446.1,2446.0,3.6046]
[1642954680002,2.32007703,2446.1,2446.0,4.6046]
[1642954680210,0.04,2446.2,2446.1,31.9]
[1642954680414,0.0001,2446.7,2446.2,7.85]
[1642954680605,0.04,2446.9,2446.4,7.85]
[1642954680805,0.04,2446.9,2446.5,3.48599311]
[1642954681006,0.04,2446.9,2446.6,1.79107274]
[1642954681209,0.04,2446.9,2446.8,5.0046]
[1642954681406,0.04,2446.9,2446.8,5.6046]
[1642954681607,0.04,2446.9,2446.8,6.6046]
[1642954686051,0.04,2446.9,2446.8,2.3946]
[1642954686451,0.04,2446.9,2446.8,1.3946]
[1642954686651,0.04,2446.9,2446.8,4.3446]
[1642954687105,0.04,2446.9,2446.8,5.3446]
[1642954687303,0.04,2446.9,2446.8,5.14]
[1642954687705,0.04,2446.9,2446.8,5.3446]
[1642954689808,0.04,2446.9,2446.8,2.3946]
[1642954690009,0.04,2446.9,2446.8,1.3946]
[1642954691658,0.04,2447.0,2446.9,2.95]
[1642954691858,0.04,2447.0,2446.8,0.8046]
[1642954692262,0.04,2447.0,2446.9,0.2046]
[1642954692663,0.04,2447.3,2447.0,7.85]
[1642954692861,0.04,2447.3,2447.1,3.79222217]
[1642954693060,0.04,2447.3,2447.2,24.05]
[1642954693266,0.04,2447.3,2447.2,0.2046]
[1642954693267,0.0001,2447.3,2447.2,0.2046]
[1642954693463,0.0001,2447.3,2447.2,1.5046]
[1642954693663,0.0001,2447.3,2447.2,6.0046]
[1642954693863,0.0001,2447.3,2447.2,6.49883387]
[1642954694062,0.0001,2447.3,2447.2,7.49883387]
[1642954694261,0.0001,2447.3,2447.2,31.54883387]
[1642954695299,0.0001,2447.3,2447.2,7.49883387]
[1642954695499,0.0001,2447.3,2447.2,2.79423387]
[1642954696501,0.0001,2447.3,2447.2,0.5046]
[1642954696704,0.0001,2447.3,2446.7,0.2046]
[1642954696705,3.9501,2447.3,2446.7,0.2046]
[1642954697103,0.0001,2447.3,2446.7,0.2046]
[1642954697705,1.45319039,2447.3,2446.7,1.3908757]
[1642954697905,1.45319039,2447.3,2446.7,1.9908757]
[1642954700056,0.0001,2447.3,2446.7,1.9908757]
[1642954700452,0.0001,2447.3,2446.8,24.05]
[1642954700653,0.0001,2447.3,2446.9,1.0]
[1642954700853,0.0001,2447.3,2447.0,0.2046]
[1642954701054,0.0001,2447.3,2446.9,25.35]
[1642954701055,0.0001,2447.4,2447.2,0.2046]
[1642954701263,0.0001,2447.4,2447.2,24.2546]
[1642954701459,0.0001,2447.4,2447.2,24.5546]
[1642954701657,0.0001,2447.4,2447.3,8.45]
[1642954701896,0.0001,2447.4,2447.3,1.1633]
[1642954702099,0.0001,2447.4,2447.3,0.1633]
[1642954702399,0.0001,2447.4,2447.3,1.62667218]
[1642954702601,0.0001,2447.4,2447.3,8.67667218]
[1642954703002,0.0001,2447.4,2447.3,8.51337218]
[1642954703808,0.0001,2447.4,2447.3,32.56337218]
[1642954704004,0.0001,2447.4,2447.3,32.72667218]
[1642954704300,0.0001,2447.4,2447.3,8.67667218]
[1642954705106,3.9497,2448.6,2447.4,6.9]
[1642954705107,0.0201,2447.9,2447.4,6.9]
[1642954705308,0.0201,2447.9,2447.8,1.41173588]
[1642954705511,0.0201,2447.9,2447.8,1.91633588]
[1642954705752,0.0201,2447.9,2447.8,1.71173588]
[1642954705955,0.0201,2447.9,2447.8,2.01173588]
[1642954706457,0.0201,2447.9,2447.8,0.6]
[1642954706653,0.0201,2447.9,2447.8,0.3]
[1642954706852,0.0201,2447.9,2447.6,0.2046]
[1642954707057,0.0201,2447.9,2447.5,0.4633]
[1642954707261,0.0201,2447.9,2447.5,0.1633]
[1642954707861,0.0201,2447.9,2447.4,1.94446626]
[1642954708763,1.43012488,2447.8,2447.4,1.94446626]
[1642954710001,1.43012488,2447.8,2447.4,0.8046]
[1642954710200,1.43012488,2447.8,2447.4,0.5046]
[1642954710403,1.43012488,2447.8,2447.2,0.1633]
[1642954710607,1.44260736,2447.8,2446.7,0.1633]
[1642954710810,3.7576,2447.7,2446.7,0.2046]
[1642954711002,1.30147007,2447.2,2446.7,0.2046]
[1642954712003,3.8842,2447.8,2446.7,0.2046]
[1642954712204,3.8842,2447.8,2446.7,24.26668689]
[1642954712405,3.8842,2447.8,2446.7,0.21668689]
[1642954712804,3.8842,2447.8,2446.7,0.01208689]
[1642954713004,1.39204021,2447.0,2446.7,0.01208689]
[1642954713246,1.39204021,2447.0,2446.7,0.2046]
[1642954713451,3.8842,2447.8,2446.9,0.2046]
[1642954713851,3.8842,2447.8,2446.7,1.0]
[1642954714051,1.5113555,2447.6,2446.8,0.1633]
[1642954714355,1.25236977,2447.1,2446.8,0.2046]
[1642954714549,1.5113555,2447.6,2446.8,0.2046]
[1642954714950,1.5113555,2447.6,2446.8,0.5046]
[1642954715152,1.5113555,2447.6,2446.8,0.2046]
[1642954715853,1.5113555,2447.6,2446.8,0.5046]
[1642954716051,1.31975426,2447.2,2446.8,1.71934939]
[1642954716453,1.31975426,2447.2,2446.8,2.01934939]
[1642954716654,1.5113555,2447.6,2446.8,2.01934939]
[1642954718004,1.5113555,2447.6,2446.8,26.06934939]
[1642954718403,1.5113555,2447.6,2446.9,1.0]
[1642954718602,1.5113555,2447.6,2446.9,1.3]
[1642954718810,1.20152883,2447.9,2447.5,1.28955458]
[1642954719009,0.0201,2447.9,2447.5,1.88955458]
[1642954719606,0.0201,2447.9,2447.5,0.6]
[1642954720007,0.0201,2447.9,2447.6,0.2046]
[1642954720648,1.17939409,2447.8,2447.6,0.2046]
[1642954721049,1.17939409,2447.8,2447.3,0.4633]
[1642954721050,1.17939409,2447.8,2447.7,0.2046]
[1642954721252,1.17939409,2447.8,2447.7,2.9546]
[1642954721451,0.0201,2447.9,2447.7,2.9546]
[1642954721651,0.0201,2447.9,2447.8,1.0]
[1642954722058,0.0201,2447.9,2447.7,0.5046]
[1642954722255,0.0201,2447.9,2447.3,24.4179]
[1642954723455,0.0201,2447.9,2447.4,0.3]
[1642954723654,0.0201,2447.9,2447.5,0.2046]
[1642954724055,0.0201,2447.9,2447.2,0.1633]
[1642954724254,0.0201,2447.9,2447.2,1.0]
[1642954724705,0.0201,2447.9,2447.1,0.3]
[1642954725206,2.59268806,2447.6,2447.0,1.3]
[1642954725403,2.59268806,2447.6,2447.1,0.2046]
[1642954726006,2.59268806,2447.6,2446.9,1.8046]
[1642954726208,2.59268806,2447.6,2446.9,0.2046]
[1642954726209,1.10596182,2447.0,2446.9,0.2046]
[1642954726409,1.10596182,2447.0,2446.8,24.05]
[1642954727210,1.2816954,2446.9,2446.8,24.05]
[1642954727811,0.0201,2447.9,2446.8,24.8546]
[1642954728153,0.0201,2447.9,2446.9,1.0]
[1642954728351,0.0201,2447.9,2447.0,0.2046]
[1642954728751,0.0201,2447.9,2447.0,0.20377189]
[1642954728952,1.39650174,2447.1,2446.9,1.3]
[1642954729156,1.39650174,2447.1,2446.9,0.3]
[1642954729355,0.0201,2447.9,2446.8,1.3]
[1642954729957,0.0201,2447.9,2446.7,1.6]
[1642954730158,0.0201,2447.9,2446.7,0.50377189]
[1642954730363,0.0201,2447.9,2446.6,0.6]
[1642954730364,0.01236978,2447.8,2446.6,0.6]
[1642954730559,3.13799498,2447.8,2446.3,4.07707189]
[1642954730758,0.59,2447.7,2446.3,4.07707189]
[1642954731157,1.37777234,2446.7,2446.3,4.07707189]
[1642954731362,1.09313466,2446.4,2446.3,0.20377189]
[1642954732005,2.25337234,2446.7,2446.3,0.50377189]
[1642954732406,2.25337234,2446.7,2446.1,0.20377189]
[1642954733007,2.25337234,2446.7,2445.9,0.20377189]
[1642954733207,2.25337234,2446.7,2445.6,0.64367183]
[1642954733408,3.61974818,2446.6,2445.6,0.48017183]
[1642954733604,3.59292164,2446.6,2445.6,0.48017183]
[1642954733807,2.25337234,2446.7,2445.6,0.48017183]
[1642954734005,1.12756484,2445.7,2445.6,0.48017183]
[1642954734204,2.29733228,2445.7,2445.6,0.48017183]
[1642954734405,2.29733228,2445.7,2445.6,0.20377189]
[1642954735011,2.29733228,2445.7,2445.3,0.1635]
[1642954735207,2.29733228,2445.7,2445.2,0.01260825]
[1642954735415,1.51513007,2445.3,2444.7,0.48017183]
[1642954735656,1.51513007,2445.3,2444.7,24.53017183]
[1642954735857,1.51513007,2445.3,2444.7,24.32639994]
[1642954736558,1.1454604,2444.9,2444.7,24.32639994]
[1642954736757,1.51513007,2445.3,2444.7,24.32639994]
[1642954738163,1.51513007,2445.3,2444.8,1.0]
[1642954738362,1.19752769,2445.2,2444.8,1.0]
[1642954739064,1.19752769,2445.2,2444.8,2.18729377]
[1642954739501,1.19752769,2445.2,2444.8,1.0]
[1642954741906,1.19752769,2445.2,2444.7,24.62639994]
[1642954742110,1.19752769,2445.2,2444.7,24.92639994]
[1642954742508,1.19752769,2445.2,2444.7,24.32639994]
[1642954742714,1.19752769,2445.2,2444.7,24.05]
[1642954743552,1.51513007,2445.3,2444.7,24.05]
[1642954743553,1.19540964,2444.8,2444.7,24.05]
[1642954743756,3.958,2445.6,2444.7,24.05]
[1642954743959,8.197,2445.7,2444.7,24.05]
[1642954744164,0.08536,2446.5,2444.8,1.20377189]
[1642954744362,0.08536,2446.5,2445.2,0.01294155]
[1642954744561,2.09543232,2446.4,2445.2,0.01294155]
[1642954744758,1.54736732,2445.8,2445.4,1.41759234]
[1642954745159,1.54736732,2445.8,2445.4,1.71759234]
[1642954745660,1.54736732,2445.8,2445.4,1.81990234]
[1642954745858,1.54736732,2445.8,2445.4,0.40231]
[1642954746058,1.54736732,2445.8,2445.4,0.10231]
[1642954747313,1.54736732,2445.8,2445.2,0.6]
[1642954747516,1.54736732,2445.8,2445.1,0.80377189]
[1642954747919,1.54736732,2445.8,2445.1,0.50377189]
[1642954748316,1.54736732,2445.8,2445.2,1.23593348]
[1642954748513,1.54736732,2445.8,2445.2,1.53593348]
[1642954748715,1.54736732,2445.8,2445.2,1.63824348]
[1642954748925,8.00272185,2450.1,2445.4,0.04428765]
[1642954748926,6.235,2447.7,2445.4,0.04428765]
[1642954749122,6.96546965,2447.4,2445.9,0.01241611]
[1642954749320,1.1493,2447.3,2446.1,24.05]
[1642954749519,3.24226868,2447.3,2446.2,1.66707189]
[1642954749919,1.5049896,2446.7,2446.2,1.66707189]
[1642954750516,1.5049896,2446.7,2446.2,0.66707189]
[1642954750759,1.5049896,2446.7,2446.2,0.96707189]
[1642954750954,1.5049896,2446.7,2446.2,1.91722359]
[1642954751154,1.5049896,2446.7,2446.2,2.21722359]
[1642954751556,1.24792767,2446.9,2446.2,3.21722359]
[1642954751755,1.24792767,2446.9,2446.3,24.05]
[1642954751960,1.1493,2447.3,2446.3,25.05]
[1642954752161,1.1493,2447.3,2446.6,0.10226]
[1642954752363,3.792,2447.5,2446.6,0.10111155]
[1642954752666,1.1644497,2447.2,2446.8,1.18562487]
[1642954752864,1.1644497,2447.2,2446.6,0.10111155]
[1642954753064,1.1644497,2447.2,2446.7,0.20377189]
[1642954753867,1.1644497,2447.2,2446.6,1.70011114]
[1642954755003,1.1644497,2447.2,2446.6,0.40111155]
[1642954755203,1.1644497,2447.2,2446.4,25.05]
[1642954755404,1.1644497,2447.2,2446.4,25.35]
[1642954755601,1.1644497,2447.2,2446.4,1.6]
[1642954755808,1.1644497,2447.2,2446.4,0.6]
[1642954756003,1.38526592,2446.6,2446.2,0.1633]
[1642954756210,1.38526592,2446.6,2446.0,0.27639994]
[1642954756807,1.38526592,2446.6,2445.7,0.36727189]
[1642954757406,1.22189305,2445.9,2445.7,0.66727189]
[1642954757607,1.22189305,2445.9,2445.7,0.50377189]
[1642954757807,1.22189305,2445.9,2445.8,3.20377189]
[1642954758009,1.22189305,2445.9,2445.8,3.50377189]
[1642954758254,1.22189305,2445.9,2445.4,1.0]
[1642954758460,1.22189305,2445.9,2445.2,1.20377189]
[1642954758653,1.22189305,2445.9,2445.2,1.80377189]
[1642954758855,1.22189305,2445.9,2445.2,0.80377189]
[1642954759253,1.22189305,2445.9,2445.3,1.16012077]
[1642954759857,1.30298083,2446.0,2445.3,1.16012077]
[1642954760056,4.82069658,2446.9,2445.3,1.26243077]
[1642954760057,4.85615181,2446.8,2445.3,1.26243077]
[1642954760657,4.85615181,2446.8,2445.3,2.26243077]
[1642954761066,1.20151966,2446.0,2445.3,2.26243077]
[1642954761460,1.20151966,2446.0,2445.4,0.20377189]
[1642954761907,1.20151966,2446.0,2445.4,0.50377189]
[1642954762507,1.09345151,2446.2,2445.4,0.50377189]
[1642954763107,1.09345151,2446.2,2445.4,1.50377189]
[1642954763310,1.09345151,2446.2,2445.4,0.50377189]
[1642954763507,1.47363244,2446.1,2445.7,1.48580553]
[1642954763713,4.7693,2446.8,2445.7,1.68957742]
[1642954763907,4.7693,2446.8,2445.7,26.33957742]
[1642954763908,1.1522,2446.8,2445.7,26.33957742]
[1642954764107,1.1522,2446.8,2445.8,1.0]
[1642954764507,4.8078,2446.9,2445.8,1.0]
[1642954764808,1.22766012,2446.2,2445.8,1.0]
[1642954765851,1.22766012,2446.2,2445.7,24.65]
[1642954766052,1.22766012,2446.2,2445.8,1.0]
[1642954766357,1.44545882,2446.4,2445.8,1.0]
[1642954767155,1.11064464,2446.1,2445.8,1.0]
[1642954767555,1.44545882,2446.4,2445.8,1.0]
[1642954767755,0.7338737,2446.9,2445.9,5.0]
[1642954768256,3.7242,2447.0,2445.9,5.0]
[1642954768257,1.22750077,2446.4,2446.0,0.95]
[1642954768461,1.53825387,2446.3,2446.0,0.95]
[1642954768657,1.53825387,2446.3,2445.9,0.6]
[1642954768864,1.53825387,2446.3,2445.7,26.08117405]
[1642954770101,1.53825387,2446.3,2445.6,0.1635]
[1642954770306,1.39030999,2445.8,2445.2,0.20377189]
[1642954771510,1.54491799,2445.6,2445.2,1.3828956]
[1642954771703,1.54491799,2445.6,2445.0,0.27639994]
[1642954772510,1.54491799,2445.6,2444.9,0.1635]
[1642954772710,1.2137392,2445.4,2445.0,1.42842914]
[1642954772912,1.2137392,2445.4,2444.7,27.9056]
[1642954773152,1.2137392,2445.4,2444.7,24.05]
[1642954773954,1.2137392,2445.4,2445.0,1.21618183]
[1642954774160,1.2137392,2445.4,2444.7,24.05]
[1642954774557,1.2137392,2445.4,2444.8,1.0]
[1642954774956,1.54491799,2445.6,2444.8,1.20377189]
[1642954775157,1.54491799,2445.6,2445.0,1.10802933]
[1642954775456,1.54491799,2445.6,2444.8,1.0]
[1642954776058,1.16037567,2445.5,2444.8,1.0]
[1642954776357,1.28137712,2445.2,2444.8,2.7411326]
[1642954776557,1.16037567,2445.5,2444.8,2.7411326]
[1642954777210,1.16037567,2445.5,2444.8,1.20377189]
[1642954777407,1.16037567,2445.5,2444.8,1.0]
[1642954778409,1.42478119,2445.1,2444.8,1.0]
[1642954780210,1.16037567,2445.5,2444.8,1.0]
[1642954781058,1.17863583,2445.0,2444.8,1.0]
[1642954781364,0.05170904,2444.9,2444.5,1.3]
[1642954781559,0.05170904,2444.9,2444.5,0.6]
[1642954781759,0.05170904,2444.9,2444.4,0.50377189]
[1642954781974,0.05170904,2444.9,2444.2,0.20377189]
[1642954782164,1.25287083,2444.3,2444.1,0.43989994]
[1642954782367,1.29708907,2444.5,2444.1,0.1635]
[1642954783563,1.09904472,2444.3,2444.1,0.1635]
[1642954784913,1.09904472,2444.3,2444.0,0.50377189]
[1642954785113,1.09904472,2444.3,2443.9,1.27061209]
[1642954785312,1.09904472,2444.3,2443.9,1.57061209]
[1642954785712,1.09904472,2444.3,2443.9,1.27061209]
[1642954786212,1.09904472,2444.3,2443.6,1.0]
[1642954786415,1.09904472,2444.3,2443.6,1.6]
[1642954787417,1.29708907,2444.5,2443.8,1.53274834]
[1642954787614,0.08536,2445.0,2443.8,1.83274834]
[1642954787813,17.05770703,2445.1,2443.9,3.37351773]
[1642954788014,17.05770703,2445.1,2443.8,2.13274834]
[1642954788015,17.05770703,2445.1,2444.0,3.39317658]
[1642954788471,17.05770703,2445.1,2444.1,1.3]
[1642954788672,1.27769477,2444.7,2444.3,1.35470967]